bitfinex-derivatives/quotes_SOLF0:USTF0_20250709
["timestamp","ask_amount","ask_price","bid_price","bid_amount"]
[1752069674895,4.74355731,153.55,153.48,4.74355731]
[1752069675402,7.00225731,153.56,153.5,6.5136]
[1752069676100,7.00225731,153.56,153.51,6.5133]
[1752069676306,4.74355731,153.6,153.48,4.74355731]
[1752069676502,4.74355731,153.57,153.48,4.74355731]
[1752069676807,4.74355731,153.55,153.48,4.74355731]
[1752069677002,7.00225731,153.6,153.44,4.74355731]
[1752069677003,4.74355731,153.53,153.45,4.74355731]
[1752069677308,4.74355731,153.51,153.45,4.74355731]
[1752069678099,6.514,153.5,153.45,4.74355731]
[1752069678301,4.74355731,153.51,153.43,562.24]
[1752069678508,4.74355731,153.49,153.43,562.24]
[1752069678914,4.74355731,153.49,153.44,6.5161]
[1752069679307,4.74355731,153.47,153.43,562.24]
[1752069679508,4.74355731,153.52,153.4,1.0]
[1752069679711,4.74355731,153.48,153.41,4.74355731]
[1752069679912,4.74355731,153.48,153.41,8.11155731]
[1752069680113,4.74355731,153.52,153.45,4.74355731]
[1752069680411,4.74355731,153.52,153.43,4.74355731]
[1752069680609,4.74355731,153.49,153.45,6.5156]
[1752069680808,4.74355731,153.49,153.42,199.80355731]
[1752069681014,6.5148,153.48,153.44,6.516]
[1752069681215,4.74355731,153.49,153.42,196.06]
[1752069681410,4.74355731,153.49,153.42,200.80355731]
[1752069681613,6.5149,153.48,153.44,6.516]
[1752069681812,4.74355731,153.49,153.42,196.06]
[1752069682014,4.74355731,153.52,153.38,18.20065667]
[1752069682312,4.74355731,153.45,153.42,6.5169]
[1752069682508,4.74355731,153.48,153.42,4.74355731]
[1752069682714,6.5143,153.49,153.45,6.5156]
[1752069682915,4.74355731,153.51,153.44,4.74355731]
[1752069683114,6.5142,153.49,153.45,6.5156]
[1752069683515,4.74355731,153.51,153.43,4.74355731]
[1752069683815,6.5149,153.48,153.44,6.5161]
[1752069684015,4.74355731,153.51,153.42,4.74355731]
[1752069684406,4.74355731,153.51,153.45,6.5158]
[1752069684407,6.5147,153.48,153.45,6.5158]
[1752069684917,6.5143,153.49,153.46,6.5154]
[1752069685215,4.74355731,153.51,153.38,1.0]
[1752069685216,4.74355731,153.51,153.43,4.74355731]
[1752069686017,6.5148,153.48,153.44,6.516]
[1752069686216,4.74355731,153.51,153.44,6.516]
[1752069686614,4.74355731,153.49,153.43,6.5166]
[1752069687219,4.74355731,153.49,153.44,6.5161]
[1752069687521,4.74355731,153.49,153.41,199.84355731]
[1752069687822,4.74355731,153.51,153.43,4.74355731]
[1752069688312,6.5137,153.5,153.43,4.74355731]
[1752069688519,6.5137,153.5,153.44,4.74355731]
[1752069688917,6.5142,153.49,153.44,4.74355731]
[1752069689120,6.5142,153.49,153.45,6.5155]
[1752069690620,6.5139,153.5,153.46,6.5152]
[1752069691117,6.5142,153.49,153.46,6.5152]
[1752069691320,6.5142,153.49,153.44,2.3203]
[1752069691321,4.74355731,153.51,153.44,2.3203]
[1752069691523,4.74355731,153.47,153.39,4.74355731]
[1752069691719,15.2004,153.54,153.39,4.74355731]
[1752069691921,4.74355731,153.5,153.38,198.4203]
[1752069692116,4.74355731,153.5,153.42,4.74355731]
[1752069692317,4.52186069,153.53,153.44,4.74355731]
[1752069692620,4.74355731,153.45,153.35,18.20065667]
[1752069692821,4.74355731,153.45,153.37,4.74355731]
[1752069693022,4.74355731,153.45,153.38,4.74355731]
[1752069693227,11.25965731,153.45,153.41,6.5172]
[1752069694323,6.5163,153.44,153.41,6.5172]
[1752069694525,6.5163,153.44,153.38,4.74355731]
[1752069694924,6.5163,153.44,153.4,6.5177]
[1752069695128,6.5168,153.43,153.4,6.5177]
[1752069695932,4.74355731,153.45,153.39,6.5182]
[1752069696329,4.74355731,153.45,153.36,390.22]
[1752069696627,6.5169,153.43,153.4,6.5179]
[1752069696826,4.74355731,153.45,153.37,4.74355731]
[1752069697024,17.77015731,153.52,153.37,4.74355731]
[1752069697025,4.74355731,153.46,153.37,4.74355731]
[1752069697229,4.4611153,153.51,153.39,4.74355731]
[1752069697423,6.5162,153.45,153.41,6.5171]
[1752069697729,6.5162,153.45,153.39,4.74355731]
[1752069697927,17.77015731,153.52,153.39,4.74355731]
[1752069698131,17.77015731,153.52,153.41,6.5172]
[1752069698132,4.74355731,153.46,153.41,6.5172]
[1752069698331,4.74355731,153.46,153.38,4.74355731]
[1752069698631,6.5165,153.44,153.4,6.5176]
[1752069699033,6.5165,153.44,153.38,4.74355731]
[1752069699527,6.5165,153.44,153.36,391.22]
[1752069699528,4.45998909,153.51,153.36,391.22]
[1752069699727,4.74355731,153.45,153.38,4.74355731]
[1752069699930,6.5163,153.44,153.4,6.5177]
[1752069700730,4.74355731,153.45,153.4,6.5177]
[1752069701633,4.74355731,153.45,153.39,6.5182]
[1752069701827,6.5167,153.43,153.38,4.74355731]
[1752069702035,4.74355731,153.45,153.4,6.5179]
[1752069702433,6.5165,153.44,153.4,6.5179]
[1752069702633,4.74355731,153.45,153.4,6.5179]
[1752069702829,4.74355731,153.45,153.38,4.74355731]
[1752069702830,4.74355731,153.45,153.39,6.5182]
[1752069703032,6.5153,153.47,153.4,4.74355731]
[1752069703434,6.5153,153.47,153.38,195.14]
[1752069703435,6.5153,153.47,153.43,6.5164]
[1752069703833,2.1761,153.54,153.43,4.74355731]
[1752069704034,4.74355731,153.52,153.46,6.5154]
[1752069704335,4.74355731,153.52,153.45,4.74355731]
[1752069704526,4.74355731,153.52,153.47,6.515]
[1752069704733,6.5138,153.5,153.45,4.74355731]
[1752069705832,6.5142,153.49,153.46,6.5152]
[1752069706131,4.74355731,153.51,153.45,4.74355731]
[1752069706433,17.76955731,153.52,153.4,4.74355731]
[1752069706637,4.74355731,153.48,153.41,4.74355731]
[1752069706836,6.5152,153.47,153.43,6.5164]
[1752069707929,6.5152,153.47,153.44,6.5162]
[1752069708339,6.5147,153.48,153.44,6.5162]
[1752069708736,4.74355731,153.49,153.44,6.5162]
[1752069708938,6.5149,153.48,153.44,6.5162]
[1752069709135,12.374219,153.52,153.33,563.66]
[1752069709329,6.5171,153.42,153.36,4.5705]
[1752069709535,4.755639,153.45,153.38,6.5186]
[1752069709933,6.5155,153.46,153.4,4.755639]
[1752069710238,4.755639,153.46,153.4,6.5179]
[1752069710438,4.755639,153.44,153.34,91.40765372]
[1752069710632,4.755639,153.44,153.36,4.755639]
[1752069710932,20.65881208,153.51,153.34,95.90905372]
[1752069710933,13.0271,153.51,153.39,4.75587106]
[1752069711139,4.75587106,153.49,153.43,6.5167]
[1752069711340,4.75587106,153.49,153.39,196.12]
[1752069711533,6.5154,153.46,153.4,4.75587106]
[1752069711738,4.75587106,153.47,153.39,4.75587106]
[1752069712039,6.5162,153.45,153.39,4.75587106]
[1752069712241,6.5162,153.45,153.41,6.5173]
[1752069712430,4.75587106,153.47,153.37,196.1]
[1752069712631,4.75587106,153.47,153.38,4.75587106]
[1752069713130,4.75587106,153.47,153.4,6.5177]
[1752069713331,4.75587106,153.46,153.4,6.5177]
[1752069713533,2.1741,153.51,153.38,4.75587106]
[1752069713733,4.44798367,153.5,153.4,4.75587106]
[1752069713933,4.75587106,153.49,153.4,4.75587106]
[1752069714931,6.5154,153.46,153.43,6.5164]
[1752069715232,4.75587106,153.49,153.4,4.75587106]
[1752069715636,6.5156,153.46,153.4,4.75587106]
[1752069716140,6.5156,153.46,153.42,6.5169]
[1752069716343,6.516,153.45,153.42,6.5169]
[1752069717839,4.75587106,153.49,153.42,4.75587106]
[1752069718042,6.92997106,153.51,153.42,4.75587106]
[1752069718236,6.92997106,153.51,153.44,4.75587106]
[1752069718431,2.1741,153.51,153.44,4.75587106]
[1752069718635,2.1741,153.51,153.46,4.75587106]
[1752069718938,2.1741,153.51,153.45,4.75075088]
[1752069719137,6.5142,153.49,153.46,6.5152]
[1752069719643,6.5139,153.5,153.46,6.5152]
[1752069720040,2.1848,153.52,153.47,6.515]
[1752069721142,6.5139,153.5,153.47,6.515]
[1752069721349,6.5139,153.5,153.45,4.75075088]
[1752069721843,6.5139,153.5,153.46,6.5151]
[1752069722145,6.5139,153.5,153.45,4.75075088]
[1752069722843,6.5134,153.51,153.47,6.5146]
[1752069723047,6.93555088,153.52,153.47,6.5146]
[1752069723646,2.3249,153.55,153.49,4.75075088]
[1752069723945,6.5123,153.54,153.5,6.5135]
[1752069724843,2.3249,153.55,153.5,6.5135]
[1752069725045,2.3249,153.55,153.49,11.26475088]
[1752069725241,2.3249,153.55,153.49,4.75075088]
[1752069725441,4.75075088,153.57,153.51,4.75075088]
[1752069725645,4.48972688,153.56,153.51,4.75075088]
[1752069725842,6.5115,153.56,153.51,4.75075088]
[1752069726043,7.08405088,153.59,153.51,4.75075088]
[1752069726239,4.51181079,153.58,153.51,4.75075088]
[1752069726443,6.5117,153.55,153.51,4.75075088]
[1752069726740,7.08405088,153.59,153.51,4.75075088]
[1752069726947,4.51403949,153.58,153.51,4.75075088]
[1752069727142,2.3333,153.59,153.51,4.75075088]
[1752069727444,6.5108,153.57,153.51,4.75075088]
[1752069727639,6.5108,153.57,153.52,4.75075088]
[1752069727844,2.3333,153.59,153.52,4.75075088]
[1752069728144,4.75075088,153.6,153.52,4.75075088]
[1752069728543,6.5102,153.59,153.52,4.75075088]
[1752069728745,4.75075088,153.6,153.54,6.5117]
[1752069730546,6.5107,153.58,153.54,6.5117]
[1752069730738,4.75075088,153.6,153.53,6.5123]
[1752069731048,6.511,153.57,153.53,6.5123]
[1752069731551,6.511,153.57,153.54,6.512]
[1752069732050,4.75075088,153.6,153.54,6.5118]
[1752069733545,6.5107,153.58,153.54,6.5118]
[1752069733851,6.5107,153.58,153.52,4.75075088]
[1752069734251,6.5108,153.57,153.52,4.75075088]
[1752069734446,4.75075088,153.6,153.54,6.5117]
[1752069735350,4.75075088,153.6,153.53,6.5123]
[1752069735545,6.5111,153.57,153.53,6.5123]
[1752069736249,6.5112,153.56,153.52,6.5127]
[1752069736448,2.3255,153.61,153.46,18.5386]
[1752069736449,4.75075088,153.58,153.5,4.75075088]
[1752069736647,4.75075088,153.56,153.48,4.75075088]
[1752069737052,4.75075088,153.54,153.46,9.25905088]
[1752069737245,6.5137,153.51,153.47,6.5149]
[1752069737653,4.75075088,153.54,153.46,9.25905088]
[1752069738045,6.5139,153.5,153.47,6.5149]
[1752069738249,6.5139,153.5,153.46,9.25905088]
[1752069738451,4.75075088,153.54,153.46,9.25905088]
[1752069738652,6.5137,153.51,153.47,6.5147]
[1752069739053,6.5148,153.48,153.45,11.26655088]
[1752069739254,4.75075088,153.52,153.45,11.26655088]
[1752069739657,6.5144,153.49,153.45,11.26655088]
[1752069739849,6.5144,153.49,153.46,6.5154]
[1752069740053,6.5144,153.49,153.45,4.75075088]
[1752069740658,6.5144,153.49,153.45,11.26635088]
[1752069740853,6.5139,153.5,153.45,4.75075088]
[1752069741155,4.75075088,153.53,153.47,4.75075088]
[1752069741356,6.5126,153.53,153.49,4.75075088]
[1752069741553,0.04312894,153.52,153.48,4.7939443]
[1752069741750,0.04312894,153.52,153.48,0.04319342]
[1752069741951,6.5136,153.51,153.48,0.04319342]
[1752069742361,0.04312894,153.52,153.48,6.55769342]
[1752069742756,0.04312894,153.52,153.49,6.5139]
[1752069743252,6.55632894,153.52,153.48,6.55749342]
[1752069743656,0.04312894,153.52,153.48,6.55749342]
[1752069743856,6.55612894,153.52,153.48,4.7939443]
[1752069744257,0.04312894,153.52,153.49,6.5139]
[1752069745161,6.55622894,153.52,153.49,6.5139]
[1752069745455,0.04312894,153.52,153.48,4.7939443]
[1752069746257,6.5136,153.51,153.48,4.7939443]
[1752069746662,6.5133,153.51,153.48,0.04319342]
[1752069747267,0.04312894,153.52,153.48,0.04319342]
[1752069747965,6.55622894,153.52,153.48,6.55759342]
[1752069748161,0.04312894,153.52,153.48,0.04319342]
[1752069748662,6.55612894,153.52,153.49,6.5139]
[1752069749363,0.04312894,153.52,153.5,6.5137]
[1752069749759,0.04312894,153.52,153.49,6.514]
[1752069749964,0.04312894,153.52,153.48,0.04319342]
[1752069750365,0.04312894,153.52,153.49,6.5139]
[1752069750563,6.55602894,153.52,153.48,0.04319342]
[1752069751867,6.55602894,153.52,153.48,6.55759342]
[1752069752768,6.5134,153.51,153.48,0.04319342]
[1752069753064,6.55632894,153.52,153.48,6.55759342]
[1752069753563,6.55632894,153.52,153.48,0.04319342]
[1752069753871,0.04312894,153.52,153.49,6.5138]
[1752069754267,6.55622894,153.52,153.49,6.5138]
[1752069755062,6.5134,153.51,153.48,11.3083443]
[1752069756569,4.79387982,153.52,153.48,0.04319342]
[1752069756965,4.75075088,153.5,153.48,0.04319342]
[1752069757166,6.5141,153.49,153.48,0.04319342]
[1752069758070,6.5157,153.46,153.43,6.5165]
[1752069758471,4.75075088,153.48,153.4,7.00165088]
[1752069758767,6.5156,153.46,153.42,6.5169]
[1752069758972,4.75075088,153.48,153.42,6.5169]
[1752069759467,4.75075088,153.48,153.43,6.5167]
[1752069759468,6.5157,153.46,153.43,6.5167]
[1752069760469,6.5159,153.45,153.4,7.00165088]
[1752069761267,6.5164,153.44,153.4,7.00165088]
[1752069761572,4.75075088,153.46,153.42,6.5171]
[1752069761770,6.516,153.45,153.4,7.00165088]
[1752069762170,4.75075088,153.46,153.4,7.00165088]
[1752069762671,4.75075088,153.46,153.4,13.51925088]
[1752069762873,6.5162,153.45,153.4,13.51925088]
[1752069763170,6.5162,153.45,153.41,6.5174]
[1752069763671,6.5163,153.44,153.4,7.00165088]
[1752069764272,0.04125807,153.47,153.42,6.5171]
[1752069764666,6.55635807,153.47,153.42,11.26785088]
[1752069764963,0.04125807,153.47,153.44,6.516]
[1752069765970,0.04125807,153.47,153.44,4.75075088]
[1752069766169,0.04125807,153.47,153.46,4.75075088]
[1752069766365,2.3326,153.55,153.46,4.75075088]
[1752069766366,4.75075088,153.54,153.46,4.75075088]
[1752069766566,7.08335088,153.55,153.48,4.75075088]
[1752069766872,6.5125,153.53,153.48,4.75075088]
[1752069767075,7.08335088,153.55,153.5,4.75075088]
[1752069767076,2.3326,153.55,153.5,4.75075088]
[1752069767272,2.19,153.57,153.52,4.75075088]
[1752069767468,6.5116,153.55,153.52,4.75075088]
[1752069767774,2.19,153.57,153.52,4.75075088]
[1752069768772,6.5117,153.55,153.52,11.26355088]
[1752069770074,6.512,153.54,153.51,6.5131]
[1752069770274,6.512,153.54,153.51,11.26385088]
[1752069770777,6.5118,153.55,153.51,11.26385088]
[1752069771072,6.94075088,153.57,153.51,4.75075088]
[1752069771270,6.5122,153.54,153.51,4.75075088]
[1752069772173,6.5118,153.55,153.51,11.26395088]
[1752069772370,2.19,153.57,153.51,4.75075088]
[1752069772669,2.1421,153.59,153.53,4.75075088]
[1752069773777,6.5117,153.55,153.53,4.75075088]
[1752069774075,6.5117,153.55,153.52,11.26345088]
[1752069774271,6.512,153.54,153.52,6.5127]
[1752069774478,6.512,153.54,153.51,6.5132]
[1752069774676,4.75075088,153.58,153.5,4.75075088]
[1752069774877,6.5113,153.56,153.53,6.5121]
[1752069775279,6.5113,153.56,153.52,4.75075088]
[1752069775476,6.99125088,153.62,153.54,4.75075088]
[1752069775668,6.99125088,153.62,153.52,4.75075088]
[1752069775669,4.75075088,153.64,153.56,4.75075088]
[1752069775872,6.5097,153.6,153.56,11.26175088]
[1752069776272,6.5097,153.6,153.56,4.75075088]
[1752069776678,6.51,153.59,153.56,4.75075088]
[1752069777479,4.75075088,153.6,153.53,2.2059]
[1752069777679,4.75075088,153.6,153.52,4.75075088]
[1752069777878,6.5114,153.56,153.52,11.26335088]
[1752069778080,4.75075088,153.6,153.52,11.26335088]
[1752069778382,4.75075088,153.59,153.52,4.75075088]
[1752069778575,6.5108,153.57,153.53,6.5122]
[1752069778784,4.75075088,153.59,153.53,6.5122]
[1752069778981,4.75075088,153.59,153.52,4.75075088]
[1752069779178,4.75075088,153.61,153.54,4.75075088]
[1752069779582,13.0149,153.65,153.54,4.75075088]
[1752069779785,6.5106,153.58,153.54,11.26245088]
[1752069780482,6.51,153.59,153.55,6.5116]
[1752069780678,4.75075088,153.61,153.54,4.75075088]
[1752069780874,6.5124,153.54,153.5,4.75075088]
[1752069781076,4.75075088,153.57,153.47,4.5268]
[1752069781285,4.75075088,153.57,153.5,4.75075088]
[1752069781475,6.5121,153.54,153.5,11.26425088]
[1752069781881,6.5118,153.55,153.51,6.5132]
[1752069782084,4.75075088,153.57,153.5,4.75075088]
[1752069782581,6.5116,153.55,153.51,6.513]
[1752069783284,6.5116,153.55,153.52,6.5128]
[1752069783986,6.5116,153.55,153.51,6.513]
[1752069786491,6.512,153.54,153.51,6.513]
[1752069786689,6.512,153.54,153.5,11.26425088]
[1752069786885,4.75075088,153.57,153.5,11.26425088]
[1752069787190,6.5127,153.53,153.5,4.75075088]
[1752069787392,4.75075088,153.55,153.48,4.75075088]
[1752069787886,4.75075088,153.57,153.48,4.75075088]
[1752069788701,4.75075088,153.57,153.49,4.75075088]
[1752069788899,2.2158,153.59,153.52,6.5126]
[1752069789098,4.75075088,153.58,153.52,6.5126]
[1752069789497,6.5115,153.56,153.52,6.5126]
[1752069789994,6.5115,153.56,153.51,4.75075088]
[1752069790502,6.5116,153.55,153.51,11.26385088]
[1752069790696,4.75075088,153.58,153.51,4.75075088]
[1752069790896,4.75075088,153.58,153.49,4.75075088]
[1752069791093,4.75075088,153.56,153.49,11.26475088]
[1752069791695,6.5129,153.52,153.49,11.26475088]
[1752069794203,6.5129,153.52,153.49,4.75075088]
[1752069794402,6.5134,153.51,153.49,4.75075088]
[1752069794803,2.2158,153.59,153.47,4.5268]
[1752069795005,4.75075088,153.54,153.47,9.27755088]
[1752069795496,4.75075088,153.54,153.47,15.79235088]
[1752069795706,4.75075088,153.54,153.47,9.27755088]
[1752069796300,6.5136,153.51,153.48,6.5145]
[1752069796497,6.5136,153.51,153.47,9.27755088]
[1752069796498,4.75075088,153.54,153.47,9.27755088]
[1752069796698,4.75075088,153.54,153.44,563.6]
[1752069796906,4.75075088,153.54,153.46,4.75075088]
[1752069797405,6.514,153.5,153.47,6.5147]
[1752069798107,4.75075088,153.54,153.46,11.26595088]
[1752069798304,4.75075088,153.54,153.46,4.75075088]
[1752069798505,6.5139,153.5,153.47,6.5149]
[1752069799105,4.75075088,153.56,153.48,4.75075088]
[1752069799405,4.75075088,153.56,153.5,4.75075088]
[1752069799603,6.5127,153.53,153.5,11.26445088]
[1752069800209,6.5127,153.53,153.49,6.514]
[1752069800401,6.513,153.52,153.5,4.75075088]
[1752069800799,4.75075088,153.56,153.5,4.75075088]
[1752069801006,6.5127,153.53,153.5,4.75075088]
[1752069801309,4.75075088,153.56,153.48,6.5144]
[1752069801509,4.75075088,153.54,153.48,4.75075088]
[1752069801707,4.75075088,153.54,153.46,11.26595088]
[1752069802003,4.75075088,153.54,153.46,4.75075088]
[1752069802404,6.5141,153.5,153.47,6.515]
[1752069802606,4.75075088,153.52,153.44,562.6]
[1752069802907,6.5148,153.48,153.45,6.5158]
[1752069803107,4.75075088,153.5,153.43,4.75075088]
[1752069804002,6.5152,153.47,153.44,6.5159]
[1752069804199,2.296,153.52,153.43,4.75075088]
[1752069804408,6.5144,153.49,153.46,6.5154]
[1752069804805,7.04675088,153.52,153.44,4.75075088]
[1752069805106,6.5144,153.49,153.45,6.5155]
[1752069805402,7.04675088,153.52,153.45,6.5155]
[1752069805609,6.5148,153.48,153.45,6.5155]
[1752069806307,6.5148,153.48,153.44,11.26685088]
[1752069806610,4.75075088,153.5,153.38,18.20065667]
[1752069806910,4.75075088,153.5,153.42,4.75075088]
[1752069807207,2.296,153.52,153.44,4.75075088]
[1752069807412,7.04675088,153.52,153.44,4.75075088]
[1752069807708,6.5156,153.46,153.44,4.75075088]
[1752069808207,6.5156,153.46,153.39,200.2578]
[1752069808208,2.296,153.52,153.42,4.75075088]
[1752069808409,4.75075088,153.48,153.4,4.75075088]
[1752069809309,6.5166,153.44,153.41,6.5173]
[1752069809508,4.75075088,153.46,153.39,2.2138]
[1752069809706,4.75075088,153.44,153.37,562.4]
[1752069810011,4.75075088,153.42,153.36,4.75075088]
[1752069810205,4.75075088,153.42,153.31,18.20065667]
[1752069810511,6.5191,153.38,153.35,6.5201]
[1752069810710,4.75075088,153.42,153.35,6.5201]
[1752069811008,4.75075088,153.42,153.36,6.5196]
[1752069811206,4.75075088,153.42,153.34,4.75075088]
[1752069811411,6.5185,153.39,153.36,6.5194]
[1752069811713,4.75075088,153.42,153.31,194.76]
[1752069811911,6.5191,153.38,153.35,6.5199]
[1752069812206,4.75075088,153.39,153.3,562.54]
[1752069812511,4.75075088,153.4,153.31,4.75075088]
[1752069812915,6.5197,153.36,153.33,6.5208]
[1752069813216,4.75075088,153.38,153.3,562.54]
[1752069813406,4.75075088,153.38,153.31,4.75075088]
[1752069813606,4.75075088,153.38,153.31,6.5215]
[1752069813808,17.78355088,153.44,153.25,92.89937574]
[1752069813809,7.65284033,153.43,153.25,92.89937574]
[1752069814008,6.5218,153.31,153.28,6.5229]
[1752069814510,4.75075088,153.33,153.28,6.5229]
[1752069814708,4.75075088,153.33,153.27,4.75075088]
[1752069814909,7.04265088,153.36,153.24,194.78]
[1752069815104,7.04265088,153.36,153.29,4.75075088]
[1752069815308,7.04265088,153.36,153.25,194.78]
[1752069815508,7.04265088,153.36,153.28,4.75075088]
[1752069815706,7.04265088,153.36,153.3,6.5222]
[1752069815903,7.04265088,153.36,153.28,4.75075088]
[1752069816916,2.2919,153.36,153.3,4.75075088]
[1752069817119,8.8118,153.36,153.32,6.521]
[1752069817415,8.8118,153.36,153.3,4.75075088]
[1752069817416,2.2919,153.36,153.3,4.75075088]
[1752069817715,7.04115088,153.37,153.3,4.75075088]
[1752069817716,4.75075088,153.37,153.3,4.75075088]
[1752069818116,4.75075088,153.39,153.32,4.75075088]
[1752069819417,6.5191,153.38,153.34,6.5203]
[1752069819610,4.75075088,153.39,153.32,4.75075088]
[1752069820715,11.26955088,153.39,153.35,6.52]
[1752069821019,6.5188,153.39,153.35,6.52]
[1752069821415,6.5181,153.4,153.36,6.5196]
[1752069821714,133.04182872,153.41,153.34,7.13784963]
[1752069821917,133.04182872,153.41,153.36,6.5194]
[1752069821918,6.5182,153.4,153.36,6.5194]
[1752069823220,139.55942872,153.41,153.34,7.13784963]
[1752069823720,139.55942872,153.41,153.37,6.5189]
[1752069823921,133.04182872,153.41,153.34,7.13784963]
[1752069824119,133.04182872,153.41,153.38,6.5185]
[1752069824419,133.04182872,153.41,153.36,7.13784963]
[1752069824816,133.04182872,153.41,153.38,6.5188]
[1752069825318,139.55952872,153.41,153.37,6.5191]
[1752069825616,133.04182872,153.41,153.37,6.5191]
[1752069826216,133.04182872,153.41,153.35,7.13784963]
[1752069827022,139.55972872,153.41,153.37,6.5191]
[1752069827217,4.6538,153.43,153.35,7.13784963]
[1752069827413,562.64,153.44,153.29,5.4551]
[1752069827618,6.5174,153.42,153.37,6.5189]
[1752069828122,6.5169,153.43,153.39,6.5183]
[1752069828322,201.93784963,153.46,153.36,7.13784963]
[1752069828718,6.5174,153.42,153.38,6.5186]
[1752069830228,199.3247,153.45,153.29,4.4551]
[1752069830415,7.13784963,153.41,153.32,7.13784963]
[1752069830916,6.5188,153.38,153.32,7.13784963]
[1752069831320,7.13784963,153.41,153.34,6.5204]
[1752069831513,6.5193,153.37,153.32,7.13784963]
[1752069831913,6.5193,153.37,153.33,6.5207]
[1752069832122,6.519,153.38,153.32,7.13784963]
[1752069832324,7.13784963,153.41,153.34,6.5205]
[1752069833124,11.68254963,153.45,153.36,7.13784963]
[1752069833726,11.68254963,153.45,153.38,6.5188]
[1752069833926,7.13784963,153.43,153.29,4.4551]
[1752069834122,7.13784963,153.43,153.34,7.13784963]
[1752069834328,7.13784963,153.43,153.35,6.5197]
[1752069834520,6.5186,153.39,153.35,6.5197]
[1752069834824,7.13784963,153.43,153.34,7.13784963]
[1752069835226,7.13784963,153.43,153.37,6.5192]
[1752069835827,6.5179,153.41,153.38,6.5186]
[1752069837025,6.5173,153.42,153.38,6.5186]
[1752069837229,11.68254963,153.45,153.37,6.519]
[1752069837426,4.5447,153.45,153.36,7.13784963]
[1752069837824,6.5168,153.43,153.39,6.5181]
[1752069838032,4.5447,153.45,153.38,7.13784963]
[1752069839132,6.5169,153.43,153.4,6.5178]
[1752069839529,4.5447,153.45,153.4,6.5178]
[1752069839725,6.5165,153.44,153.4,6.5178]
[1752069839934,4.5447,153.45,153.39,6.5182]
[1752069840326,6.5169,153.43,153.39,6.5182]
[1752069841131,6.5172,153.42,153.39,6.5182]
[1752069841338,4.5447,153.45,153.39,6.5182]
[1752069841637,6.517,153.43,153.39,6.5182]
[1752069842537,4.5447,153.45,153.4,6.5176]
[1752069843237,4.75492707,153.46,153.4,6.5176]
[1752069843835,4.75492707,153.46,153.39,11.27312707]
[1752069844027,4.75492707,153.46,153.39,6.5182]
[1752069844229,6.517,153.43,153.39,6.5182]
[1752069844933,4.75492707,153.46,153.39,6.5182]
[1752069846237,4.75492707,153.46,153.4,6.5179]
[1752069846434,4.75492707,153.46,153.38,4.75492707]
[1752069846633,6.5174,153.42,153.38,4.75492707]
[1752069846836,6.5174,153.42,153.39,6.5182]
[1752069847640,6.5174,153.42,153.4,6.5179]
[1752069847841,6.5174,153.42,153.38,4.75492707]
[1752069848441,6.5174,153.42,153.38,11.27352707]
[1752069848642,6.5176,153.41,153.38,4.75492707]
[1752069849238,6.5176,153.41,153.37,11.27392707]
[1752069849840,6.5176,153.41,153.38,6.5188]
[1752069850245,6.5176,153.41,153.37,4.75492707]
[1752069850446,6.5176,153.41,153.37,11.27392707]
[1752069851346,6.518,153.4,153.37,11.27392707]
[1752069851546,4.75492707,153.44,153.37,4.75492707]
[1752069852051,6.5178,153.41,153.37,4.75492707]
[1752069853158,6.5178,153.41,153.38,6.5188]
[1752069853853,6.518,153.4,153.37,11.27392707]
[1752069854358,4.75492707,153.44,153.37,11.27392707]
[1752069854654,6.5178,153.41,153.37,6.519]
[1752069854960,6.5178,153.41,153.37,11.27392707]
[1752069855156,6.5178,153.41,153.38,6.5188]
[1752069856460,6.518,153.4,153.37,11.27392707]
[1752069856760,4.75492707,153.44,153.37,4.75492707]
[1752069856961,6.5174,153.42,153.37,4.75492707]
[1752069857159,4.75492707,153.44,153.37,4.75492707]
[1752069857760,6.5178,153.41,153.38,6.5186]
[1752069858161,4.75492707,153.44,153.37,4.75492707]
[1752069858959,6.5178,153.41,153.38,6.5185]
[1752069859255,4.75492707,153.44,153.37,4.75492707]
[1752069859657,6.5171,153.42,153.39,6.5181]
[1752069859961,4.75492707,153.46,153.37,4.75492707]
[1752069860165,4.75492707,153.46,153.39,6.5182]
[1752069860166,6.5171,153.42,153.39,6.5182]